[Event "ESTCC 65 2019"]
[Site "Mali Losinj"]
[Date "2019.09.20"]
[Round "3.20"]
[White "Durkan, Joe"]
[Black "Thoele, Wolfgang"]
[Result "0-1"]
[ECO "B22"]
[WhiteElo "1459"]
[BlackElo "1865"]
[Annotator "NA"]
[PlyCount "80"]
[EventDate "2019.09.18"]
[EventType "team-tourn"]
[EventCountry "CRO"]
[SourceTitle "playchess.com"]
[Source "ChessBase"]
[SourceQuality "1"]
[WhiteTeam "Ireland"]
[BlackTeam "Germany"]
[WhiteTeamCountry "IRL"]
[BlackTeamCountry "GER"]
[TimeControl "40/5400+30:1800+30"]

1. e4 {[%emt 0:00:30]} c5 {[%emt 0:00:30]} 2. c3 {[%emt 0:00:00]} d5 {[%emt 0:00:30]} 3. exd5 {[%emt 0:01:00]} Qxd5 {[%emt 0:00:30]} 4. Nf3 {[%emt 0:00:30]} Nc6 {[%emt 0:02:30]} 5. Be2 {[%emt 0:01:30]} e5 {[%emt 0:00:30]} 6. d3 {[%emt 0:02:30]} Bf5 {[%emt 0:03:30]} 7. O-O {[%emt 0:06:30]} O-O-O {[%emt 0:01:30]} 8. Ng5 {[%emt 0:15:30]} Bg6 {[%emt 0:21:30]} 9. Na3 {[%emt 0:04:30]} h6 {[%emt 0:05:30]} 10. Ne4 {[%emt 0:04:30]} Bxe4 {[%emt 0:02:30]} 11. dxe4 {[%emt 0:00:00]} Qxe4 {[%emt 0:01:30]} 12. Qe1 {[%emt 0:01:00]} Be7 {[%emt 0:01:30]} 13. Be3 {[%emt 0:02:30]} Nf6 {[%emt 0:01:30]} 14. Bf3 {[%emt 0:00:30]} Qa4 {[%emt 0:00:30]} 15. Bd1 {[%emt 0:01:30]} Qa5 {[%emt 0:03:30]} 16. Nc4 {[%emt 0:01:30]} Qc7 {[%emt 0:00:30]} 17. h3 {[%emt 0:01:30]} Nd5 {[%emt 0:01:30]} 18. Bf3 {[%emt 0:06:30]} f5 {[%emt 0:04:30]} 19. Bh5 {[%emt 0:08:30]} f4 {[%emt 0:04:30]} 20. Bd2 {[%emt 0:02:30]} Nb6 {[%emt 0:01:30]} 21. Bg4+ {[%emt 0:02:30]} Kb8 {[%emt 0:00:30]} 22. Nxb6 {[%emt 0:00:30]} Qxb6 {[%emt 0:01:30]} 23. Bf3 {[%emt 0:00:30]} Bf6 {[%emt 0:02:30]} 24. a4 {[%emt 0:06:30]} Rd6 {[%emt 0:12:30]} 25. Rb1 {[%emt 0:00:30]} Rhd8 {[%emt 0:00:30]} 26. Bc1 {[%emt 0:02:30]} Qb3 {[%emt 0:00:30]} 27. Qe4 {[%emt 0:08:28]} Na5 {[%emt 0:12:54]} 28. Be2 {[%emt 0:07:30]} c4 {[%emt 0:01:32]} 29. Bxf4 {[%emt 0:03:57]} exf4 {[%emt 0:00:21]} 30. Qxf4 {[%emt 0:00:11]} Nc6 {[%emt 0:03:18]} 31. Bxc4 {[%emt 0:03:24]} Qxa4 {[%emt 0:02:18]} 32. Rbd1 {[%emt 0:02:10]} Be5 {[%emt 0:00:28]} 33. Ra1 {[%emt 0:01:45]} Bxf4 {[%emt 0:01:08]} 34. Rxa4 {[%emt 0:00:28]} Be5 {[%emt 0:00:26]} 35. Be2 {[%emt 0:01:01]} Rd2 {[%emt 0:00:29]} 36. Bf3 {[%emt 0:00:10]} Rxb2 {[%emt 0:00:13]} 37. Rfa1 {[%emt 0:00:33]} Bxc3 {[%emt 0:01:33]} 38. Bxc6 {[%emt 0:00:41]} bxc6 {[%emt 0:00:10]} 39. Rxa7 {[%emt 0:01:37]} Rb7 {[%emt 0:00:19]} 40. Ra8+ {[%emt 0:00:23]} Kc7 {[%emt 0:00:00]} 0-1

[Event "ESTCC 65 2019"]
[Site "Mali Losinj"]
[Date "2019.09.20"]
[Round "3.21"]
[White "Quinn, John M"]
[Black "Singer, Hans"]
[Result "1-0"]
[ECO "D36"]
[WhiteElo "2105"]
[BlackElo "2184"]
[Annotator "NA"]
[PlyCount "55"]
[EventDate "2019.09.18"]
[EventType "team-tourn"]
[EventCountry "CRO"]
[SourceTitle "playchess.com"]
[Source "ChessBase"]
[SourceQuality "1"]
[WhiteTeam "England"]
[BlackTeam "Austria"]
[WhiteTeamCountry "ENG"]
[BlackTeamCountry "AUT"]
[TimeControl "40/5400+30:1800+30"]

1. d4 {[%emt 0:00:30]} Nf6 {[%emt 0:00:30]} 2. c4 {[%emt 0:00:00]} e6 {[%emt 0:00:00]} 3. Nc3 {[%emt 0:00:00]} d5 {[%emt 0:00:00]} 4. cxd5 {[%emt 0:00:00]} exd5 {[%emt 0:00:30]} 5. Bg5 {[%emt 0:00:00]} Nbd7 {[%emt 0:01:30]} 6. e3 {[%emt 0:01:30]} c6 {[%emt 0:00:30]} 7. Bd3 {[%emt 0:01:30]} Be7 {[%emt 0:00:30]} 8. Qc2 {[%emt 0:00:30]} O-O {[%emt 0:06:30]} 9. Nge2 {[%emt 0:00:30]} Re8 {[%emt 0:00:30]} 10. O-O {[%emt 0:00:30]} Nf8 {[%emt 0:00:30]} 11. f3 {[%emt 0:04:30]} g6 {[%emt 0:06:30]} 12. Rae1 {[%emt 0:07:30]} Ne6 {[%emt 0:06:30]} 13. Bh4 {[%emt 0:00:30]} b6 {[%emt 0:12:30]} 14. Kh1 {[%emt 0:14:30]} c5 {[%emt 0:02:30]} 15. dxc5 {[%emt 0:01:30]} bxc5 {[%emt 0:01:30]} 16. Rd1 {[%emt 0:01:30]} Bb7 {[%emt 0:08:30]} 17. Bb5 {[%emt 0:18:30]} Rf8 {[%emt 0:03:30]} 18. Bc4 {[%emt 0:00:30]} Ng4 {[%emt 0:14:30]} 19. fxg4 {[%emt 0:04:30]} Bxh4 {[%emt 0:00:30]} 20. Bxd5 {[%emt 0:03:30]} Qc8 {[%emt 0:03:30]} 21. Ne4 {[%emt 0:07:30]} Bxd5 {[%emt 0:06:30]} 22. Rxd5 {[%emt 0:00:30]} Qb7 {[%emt 0:02:30]} 23. Rfd1 {[%emt 0:05:30]} Rad8 {[%emt 0:04:44]} 24. N2c3 {[%emt 0:02:30]} Rxd5 {[%emt 0:01:30]} 25. Nxd5 {[%emt 0:01:30]} f5 {[%emt 0:06:58]} 26. Nd6 {[%emt 0:03:30]} Qc6 {[%emt 0:03:28]} 27. gxf5 {[%emt 0:00:57]} Qxd6 {[%emt 0:00:32]} 28. Nf6+ {[%emt 0:00:38]} 1-0

[Event "ESTCC 65 2019"]
[Site "Mali Losinj"]
[Date "2019.09.20"]
[Round "3.22"]
[White "Woeber, Friedrich"]
[Black "Hutchinson, Paul A"]
[Result "0-1"]
[ECO "B01"]
[WhiteElo "2126"]
[BlackElo "2124"]
[Annotator "NA"]
[PlyCount "68"]
[EventDate "2019.09.18"]
[EventType "team-tourn"]
[EventCountry "CRO"]
[SourceTitle "playchess.com"]
[Source "ChessBase"]
[SourceQuality "1"]
[WhiteTeam "Austria"]
[BlackTeam "England"]
[WhiteTeamCountry "AUT"]
[BlackTeamCountry "ENG"]
[TimeControl "40/5400+30:1800+30"]

1. e4 {[%emt 0:00:30]} d5 {[%emt 0:00:30]} 2. exd5 {[%emt 0:00:30]} Qxd5 {[%emt 0:00:30]} 3. Nc3 {[%emt 0:00:30]} Qa5 {[%emt 0:00:30]} 4. d4 {[%emt 0:00:30]} Nf6 {[%emt 0:00:30]} 5. Nf3 {[%emt 0:00:30]} Bf5 {[%emt 0:00:00]} 6. Bd2 {[%emt 0:02:30]} c6 {[%emt 0:00:00]} 7. Bc4 {[%emt 0:01:30]} e6 {[%emt 0:00:00]} 8. Qe2 {[%emt 0:01:30]} Bb4 {[%emt 0:00:00]} 9. O-O-O {[%emt 0:01:30]} Nd5 {[%emt 0:29:30]} 10. Nxd5 {[%emt 0:23:30]} Bxd2+ {[%emt 0:01:30]} 11. Qxd2 {[%emt 0:06:30]} Qxd2+ {[%emt 0:00:00]} 12. Kxd2 {[%emt 0:01:30]} cxd5 {[%emt 0:03:00]} 13. Bb5+ {[%emt 0:04:30]} Ke7 {[%emt 0:02:30]} 14. Rde1 {[%emt 0:09:30]} a6 {[%emt 0:00:30]} 15. Bd3 {[%emt 0:00:30]} Bxd3 {[%emt 0:02:30]} 16. Kxd3 {[%emt 0:00:30]} Nc6 {[%emt 0:00:30]} 17. c3 {[%emt 0:00:00]} b5 {[%emt 0:02:30]} 18. Ne5 {[%emt 0:04:00]} Nxe5+ {[%emt 0:14:30]} 19. dxe5 {[%emt 0:00:30]} Rac8 {[%emt 0:01:30]} 20. b3 {[%emt 0:01:30]} Rc5 {[%emt 0:01:30]} 21. Kd4 {[%emt 0:08:30]} Rhc8 {[%emt 0:00:30]} 22. Re3 {[%emt 0:00:00]} a5 {[%emt 0:00:30]} 23. Rc1 {[%emt 0:09:00]} R5c7 {[%emt 0:01:30]} 24. Re2 {[%emt 0:05:40]} Ra7 {[%emt 0:01:30]} 25. Rec2 {[%emt 0:04:13]} Rd7 {[%emt 0:15:30]} 26. Ke3 {[%emt 0:01:46]} Rcd8 {[%emt 0:01:48]} 27. Kd4 {[%emt 0:01:26]} f6 {[%emt 0:02:02]} 28. Re1 {[%emt 0:02:44]} Ra7 {[%emt 0:07:52]} 29. Rce2 {[%emt 0:02:04]} f5 {[%emt 0:00:20]} 30. Rc2 {[%emt 0:00:46]} a4 {[%emt 0:01:08]} 31. Kc5 {[%emt 0:01:32]} axb3 {[%emt 0:04:00]} 32. axb3 {[%emt 0:00:06]} d4 {[%emt 0:00:17]} 33. Kb6 {[%emt 0:01:25]} Raa8 {[%emt 0:03:17]} 34. cxd4 {[%emt 0:00:32]} Rdb8+ {[%emt 0:00:07]} 0-1

[Event "ESTCC 65 2019"]
[Site "Mali Losinj"]
[Date "2019.09.20"]
[Round "3.23"]
[White "Reuben, Stewart"]
[Black "Titz, Heimo"]
[Result "1-0"]
[ECO "E30"]
[WhiteElo "1983"]
[BlackElo "1971"]
[Annotator "NA"]
[PlyCount "71"]
[EventDate "2019.09.18"]
[EventType "team-tourn"]
[EventCountry "CRO"]
[SourceTitle "playchess.com"]
[Source "ChessBase"]
[SourceQuality "1"]
[WhiteTeam "England"]
[BlackTeam "Austria"]
[WhiteTeamCountry "ENG"]
[BlackTeamCountry "AUT"]
[TimeControl "40/5400+30:1800+30"]

1. d4 {[%emt 0:00:30]} Nf6 {[%emt 0:00:30]} 2. c4 {[%emt 0:00:00]} e6 {[%emt 0:00:30]} 3. Nc3 {[%emt 0:00:00]} Bb4 {[%emt 0:00:00]} 4. Bg5 {[%emt 0:00:30]} h6 {[%emt 0:01:00]} 5. Bh4 {[%emt 0:00:00]} g5 {[%emt 0:01:30]} 6. Bg3 {[%emt 0:00:00]} Ne4 {[%emt 0:01:30]} 7. Qc2 {[%emt 0:02:30]} f5 {[%emt 0:06:30]} 8. Be5 {[%emt 0:05:30]} O-O {[%emt 0:00:00]} 9. f3 {[%emt 0:01:30]} Bxc3+ {[%emt 0:00:00]} 10. bxc3 {[%emt 0:00:30]} Nf6 {[%emt 0:02:30]} 11. e3 {[%emt 0:03:30]} d6 {[%emt 0:00:30]} 12. Bg3 {[%emt 0:00:30]} Qe8 {[%emt 0:22:30]} 13. Bd3 {[%emt 0:02:30]} Kg7 {[%emt 0:14:30]} 14. Ne2 {[%emt 0:00:00]} Nc6 {[%emt 0:01:30]} 15. Kd2 {[%emt 0:15:00]} Nh5 {[%emt 0:06:30]} 16. Bf2 {[%emt 0:07:30]} e5 {[%emt 0:00:30]} 17. Ng3 {[%emt 0:06:30]} Nxg3 {[%emt 0:03:30]} 18. Bxg3 {[%emt 0:03:30]} exd4 {[%emt 0:02:30]} 19. exd4 {[%emt 0:06:30]} f4 {[%emt 0:02:30]} 20. Bf2 {[%emt 0:01:30]} Qf7 {[%emt 0:00:30]} 21. Rhe1 {[%emt 0:04:30]} Bf5 {[%emt 0:01:30]} 22. d5 {[%emt 0:18:41]} Ne5 {[%emt 0:00:30]} 23. Bd4 {[%emt 0:00:21]} Rae8 {[%emt 0:00:30]} 24. Bxe5+ {[%emt 0:02:33]} Rxe5 {[%emt 0:01:30]} 25. Rxe5 {[%emt 0:00:51]} dxe5 {[%emt 0:00:00]} 26. Re1 {[%emt 0:00:37]} Qg6 {[%emt 0:04:00]} 27. Rxe5 {[%emt 0:01:15]} Bxd3 {[%emt 0:00:30]} 28. Qxd3 {[%emt 0:00:10]} Qxd3+ {[%emt 0:00:30]} 29. Kxd3 {[%emt 0:00:08]} Rf7 {[%emt 0:01:30]} 30. c5 {[%emt 0:02:04]} Kf8 {[%emt 0:04:30]} 31. Ke4 {[%emt 0:02:18]} Kg7 {[%emt 0:02:37]} 32. d6 {[%emt 0:02:12]} cxd6 {[%emt 0:00:42]} 33. cxd6 {[%emt 0:00:11]} a6 {[%emt 0:01:38]} 34. Kd5 {[%emt 0:03:39]} Kf8 {[%emt 0:01:52]} 35. Ke6 {[%emt 0:02:17]} Ke8 {[%emt 0:05:14]} 36. Rc5 {[%emt 0:00:21]} 1-0

[Event "ESTCC 65 2019"]
[Site "Mali Losinj"]
[Date "2019.09.20"]
[Round "3.24"]
[White "Strobel, Ferdinand"]
[Black "Ewart, Brian R"]
[Result "1-0"]
[ECO "A03"]
[WhiteElo "1956"]
[BlackElo "1882"]
[Annotator "NA"]
[PlyCount "41"]
[EventDate "2019.09.18"]
[EventType "team-tourn"]
[EventCountry "CRO"]
[SourceTitle "playchess.com"]
[Source "ChessBase"]
[SourceQuality "1"]
[WhiteTeam "Austria"]
[BlackTeam "England"]
[WhiteTeamCountry "AUT"]
[BlackTeamCountry "ENG"]
[TimeControl "40/5400+30:1800+30"]

1. f4 {[%emt 0:00:30]} d5 {[%emt 0:00:30]} 2. Nf3 {[%emt 0:00:30]} c5 {[%emt 0:01:30]} 3. g3 {[%emt 0:00:30]} Nc6 {[%emt 0:01:30]} 4. Bg2 {[%emt 0:00:30]} g6 {[%emt 0:00:30]} 5. O-O {[%emt 0:00:30]} Bg7 {[%emt 0:00:30]} 6. d3 {[%emt 0:00:00]} Nf6 {[%emt 0:00:30]} 7. Nc3 {[%emt 0:00:00]} Bg4 {[%emt 0:12:30]} 8. Ne5 {[%emt 0:09:30]} Be6 {[%emt 0:08:30]} 9. Nxc6 {[%emt 0:04:30]} bxc6 {[%emt 0:00:30]} 10. Qe1 {[%emt 0:10:30]} Qc8 {[%emt 0:07:30]} 11. Na4 {[%emt 0:12:30]} Nd7 {[%emt 0:13:30]} 12. Qf2 {[%emt 0:13:30]} c4 {[%emt 0:10:30]} 13. dxc4 {[%emt 0:03:30]} d4 {[%emt 0:11:30]} 14. b3 {[%emt 0:06:30]} Bf5 {[%emt 0:08:23]} 15. Bb2 {[%emt 0:01:30]} e5 {[%emt 0:00:11]} 16. e4 {[%emt 0:01:30]} dxe3 {[%emt 0:02:08]} 17. Qxe3 {[%emt 0:00:30]} O-O {[%emt 0:00:53]} 18. fxe5 {[%emt 0:01:30]} Re8 {[%emt 0:06:55]} 19. Rae1 {[%emt 0:05:30]} Nxe5 {[%emt 0:03:44]} 20. Qc5 {[%emt 0:01:30]} Qc7 {[%emt 0:03:59]} 21. Kh1 {[%emt 0:00:00]} 1-0

[Event "ESTCC 65 2019"]
[Site "Mali Losinj"]
[Date "2019.09.20"]
[Round "3.25"]
[White "Carlsten, Peter"]
[Black "Kolbak, Jens"]
[Result "1/2-1/2"]
[ECO "C87"]
[WhiteElo "1986"]
[BlackElo "2173"]
[Annotator "NA"]
[PlyCount "42"]
[EventDate "2019.09.18"]
[EventType "team-tourn"]
[EventCountry "CRO"]
[SourceTitle "playchess.com"]
[Source "ChessBase"]
[SourceQuality "1"]
[WhiteTeam "Sweden"]
[BlackTeam "Denmark"]
[WhiteTeamCountry "SWE"]
[BlackTeamCountry "DEN"]
[TimeControl "40/5400+30:1800+30"]

1. e4 {[%emt 0:00:30]} e5 {[%emt 0:00:30]} 2. Nf3 {[%emt 0:00:30]} Nc6 {[%emt 0:00:00]} 3. Bb5 {[%emt 0:00:00]} a6 {[%emt 0:00:00]} 4. Ba4 {[%emt 0:00:00]} d6 {[%emt 0:00:30]} 5. c3 {[%emt 0:00:30]} Bd7 {[%emt 0:00:30]} 6. O-O {[%emt 0:01:30]} Nf6 {[%emt 0:00:30]} 7. Re1 {[%emt 0:01:30]} Be7 {[%emt 0:00:30]} 8. d4 {[%emt 0:05:30]} O-O {[%emt 0:00:30]} 9. h3 {[%emt 0:00:00]} Re8 {[%emt 0:02:30]} 10. Bc2 {[%emt 0:04:00]} Bf8 {[%emt 0:01:30]} 11. Nbd2 {[%emt 0:00:30]} g6 {[%emt 0:05:30]} 12. Nf1 {[%emt 0:03:30]} Bg7 {[%emt 0:00:30]} 13. Ng3 {[%emt 0:00:30]} h6 {[%emt 0:02:30]} 14. Be3 {[%emt 0:01:30]} Qe7 {[%emt 0:07:30]} 15. d5 {[%emt 0:02:30]} Nd8 {[%emt 0:08:30]} 16. Qd2 {[%emt 0:01:30]} Qf8 {[%emt 0:00:30]} 17. c4 {[%emt 0:00:30]} Nh7 {[%emt 0:09:30]} 18. Nh4 {[%emt 0:06:30]} Qe7 {[%emt 0:00:30]} 19. Nf3 {[%emt 0:01:30]} Qf8 {[%emt 0:00:30]} 20. Nh4 {[%emt 0:02:30]} Qe7 {[%emt 0:00:00]} 21. Nf3 {[%emt 0:00:00]} Qf8 {[%emt 0:02:00]} 1/2-1/2

[Event "ESTCC 65 2019"]
[Site "Mali Losinj"]
[Date "2019.09.20"]
[Round "3.26"]
[White "Olesen, Poul Erik Norgaard"]
[Black "Ahlstrom, Per"]
[Result "1-0"]
[ECO "B07"]
[WhiteElo "1996"]
[BlackElo "1838"]
[Annotator "NA"]
[PlyCount "77"]
[EventDate "2019.09.18"]
[EventType "team-tourn"]
[EventCountry "CRO"]
[SourceTitle "playchess.com"]
[Source "ChessBase"]
[SourceQuality "1"]
[WhiteTeam "Denmark"]
[BlackTeam "Sweden"]
[WhiteTeamCountry "DEN"]
[BlackTeamCountry "SWE"]
[TimeControl "40/5400+30:1800+30"]

1. e4 {[%emt 0:00:30]} d6 {[%emt 0:00:30]} 2. d4 {[%emt 0:00:00]} Nf6 {[%emt 0:00:00]} 3. Nc3 {[%emt 0:00:00]} g6 {[%emt 0:00:00]} 4. h4 {[%emt 0:01:30]} Bg7 {[%emt 0:04:30]} 5. Be2 {[%emt 0:01:30]} h5 {[%emt 0:02:30]} 6. Be3 {[%emt 0:03:30]} c6 {[%emt 0:02:30]} 7. Nh3 {[%emt 0:02:30]} b5 {[%emt 0:06:30]} 8. a3 {[%emt 0:00:30]} a6 {[%emt 0:02:30]} 9. f3 {[%emt 0:07:30]} Qc7 {[%emt 0:02:30]} 10. Qd2 {[%emt 0:02:30]} Nbd7 {[%emt 0:04:30]} 11. Nf2 {[%emt 0:06:30]} Bb7 {[%emt 0:07:30]} 12. f4 {[%emt 0:01:30]} c5 {[%emt 0:21:30]} 13. d5 {[%emt 0:02:30]} Rc8 {[%emt 0:05:30]} 14. Bf3 {[%emt 0:07:30]} Nb6 {[%emt 0:00:30]} 15. Be2 {[%emt 0:02:30]} b4 {[%emt 0:07:30]} 16. Ncd1 {[%emt 0:01:30]} a5 {[%emt 0:06:30]} 17. g3 {[%emt 0:04:30]} e6 {[%emt 0:04:23]} 18. dxe6 {[%emt 0:19:30]} Nxe4 {[%emt 0:01:13]} 19. Bb5+ {[%emt 0:04:30]} Kf8 {[%emt 0:00:58]} 20. Nxe4 {[%emt 0:02:30]} Bxe4 {[%emt 0:00:06]} 21. O-O {[%emt 0:01:30]} fxe6 {[%emt 0:00:10]} 22. axb4 {[%emt 0:01:30]} axb4 {[%emt 0:01:40]} 23. c3 {[%emt 0:01:30]} Nd5 {[%emt 0:03:16]} 24. cxb4 {[%emt 0:03:30]} Nxe3 {[%emt 0:02:38]} 25. Nxe3 {[%emt 0:00:30]} Bd4 {[%emt 0:00:44]} 26. Kh2 {[%emt 0:01:30]} d5 {[%emt 0:01:15]} 27. Bd3 {[%emt 0:01:34]} Bxd3 {[%emt 0:04:31]} 28. Qxd3 {[%emt 0:00:48]} Qf7 {[%emt 0:02:16]} 29. bxc5 {[%emt 0:02:20]} Bxb2 {[%emt 0:02:12]} 30. Rab1 {[%emt 0:02:27]} Qf6 {[%emt 0:00:37]} 31. f5 {[%emt 0:00:38]} Kg7 {[%emt 0:01:48]} 32. fxe6 {[%emt 0:01:45]} Qd4 {[%emt 0:01:13]} 33. Rf7+ {[%emt 0:03:43]} Kh6 {[%emt 0:00:11]} 34. Qe2 {[%emt 0:05:02]} Ba3 {[%emt 0:01:21]} 35. Nxd5 {[%emt 0:01:41]} Rxc5 {[%emt 0:01:00]} 36. Rd1 {[%emt 0:01:13]} Qg4 {[%emt 0:00:48]} 37. Qe3+ {[%emt 0:00:55]} g5 {[%emt 0:00:18]} 38. hxg5+ {[%emt 0:00:58]} Kg6 {[%emt 0:00:03]} 39. Ne7# {[%emt 0:00:00]} 1-0

[Event "ESTCC 65 2019"]
[Site "Mali Losinj"]
[Date "2019.09.20"]
[Round "3.27"]
[White "Dalling, Peter"]
[Black "Mortensen, Steen Juul"]
[Result "1/2-1/2"]
[ECO "C45"]
[WhiteElo "1824"]
[BlackElo "1892"]
[Annotator "NA"]
[PlyCount "60"]
[EventDate "2019.09.18"]
[EventType "team-tourn"]
[EventCountry "CRO"]
[SourceTitle "playchess.com"]
[Source "ChessBase"]
[SourceQuality "1"]
[WhiteTeam "Sweden"]
[BlackTeam "Denmark"]
[WhiteTeamCountry "SWE"]
[BlackTeamCountry "DEN"]
[TimeControl "40/5400+30:1800+30"]

1. e4 {[%emt 0:00:30]} e5 {[%emt 0:00:30]} 2. Nf3 {[%emt 0:00:00]} Nc6 {[%emt 0:00:00]} 3. d4 {[%emt 0:03:00]} exd4 {[%emt 0:00:00]} 4. Nxd4 {[%emt 0:00:30]} Nf6 {[%emt 0:00:30]} 5. Bg5 {[%emt 0:01:30]} h6 {[%emt 0:00:30]} 6. Bxf6 {[%emt 0:01:30]} Qxf6 {[%emt 0:00:30]} 7. c3 {[%emt 0:02:30]} Bc5 {[%emt 0:01:30]} 8. Nf3 {[%emt 0:00:30]} d6 {[%emt 0:02:30]} 9. Be2 {[%emt 0:00:30]} O-O {[%emt 0:00:30]} 10. Nbd2 {[%emt 0:02:30]} Re8 {[%emt 0:02:30]} 11. O-O {[%emt 0:02:30]} a6 {[%emt 0:03:30]} 12. Bd3 {[%emt 0:04:30]} Bg4 {[%emt 0:11:30]} 13. Qc2 {[%emt 0:03:30]} b5 {[%emt 0:02:30]} 14. a3 {[%emt 0:03:30]} Rab8 {[%emt 0:08:30]} 15. b4 {[%emt 0:02:30]} Bb6 {[%emt 0:04:30]} 16. a4 {[%emt 0:00:30]} Bxf3 {[%emt 0:04:30]} 17. Nxf3 {[%emt 0:00:30]} Ne5 {[%emt 0:01:30]} 18. Nxe5 {[%emt 0:00:30]} Qxe5 {[%emt 0:01:30]} 19. axb5 {[%emt 0:04:30]} axb5 {[%emt 0:00:30]} 20. Rfe1 {[%emt 0:02:30]} Ra8 {[%emt 0:06:30]} 21. g3 {[%emt 0:07:30]} c6 {[%emt 0:07:30]} 22. Kg2 {[%emt 0:02:30]} g5 {[%emt 0:07:30]} 23. Rf1 {[%emt 0:05:30]} Rxa1 {[%emt 0:07:30]} 24. Rxa1 {[%emt 0:00:30]} d5 {[%emt 0:03:30]} 25. f3 {[%emt 0:10:30]} Kg7 {[%emt 0:12:12]} 26. Ra6 {[%emt 0:02:30]} Rb8 {[%emt 0:00:20]} 27. exd5 {[%emt 0:02:30]} Qxd5 {[%emt 0:01:26]} 28. Be4 {[%emt 0:00:30]} Qe6 {[%emt 0:02:06]} 29. Qa2 {[%emt 0:08:30]} Qxa2+ {[%emt 0:01:34]} 30. Rxa2 {[%emt 0:00:30]} c5 {[%emt 0:00:12]} 1/2-1/2

[Event "ESTCC 65 2019"]
[Site "Mali Losinj"]
[Date "2019.09.20"]
[Round "3.28"]
[White "Andersson, Finn"]
[Black "Palsson, Bertil"]
[Result "1-0"]
[ECO "B02"]
[WhiteElo "1771"]
[BlackElo "1784"]
[Annotator "NA"]
[PlyCount "77"]
[EventDate "2019.09.18"]
[EventType "team-tourn"]
[EventCountry "CRO"]
[SourceTitle "playchess.com"]
[Source "ChessBase"]
[SourceQuality "1"]
[WhiteTeam "Denmark"]
[BlackTeam "Sweden"]
[WhiteTeamCountry "DEN"]
[BlackTeamCountry "SWE"]
[TimeControl "40/5400+30:1800+30"]

1. e4 {[%emt 0:00:30]} d5 {[%emt 0:00:30]} 2. exd5 {[%emt 0:00:00]} Nf6 {[%emt 0:00:00]} 3. Nc3 {[%emt 0:00:00]} Nxd5 {[%emt 0:00:00]} 4. Nxd5 {[%emt 0:00:30]} Qxd5 {[%emt 0:00:30]} 5. Qf3 {[%emt 0:00:00]} Qxf3 {[%emt 0:00:30]} 6. Nxf3 {[%emt 0:00:00]} c5 {[%emt 0:00:30]} 7. d4 {[%emt 0:04:30]} Bf5 {[%emt 0:06:30]} 8. c3 {[%emt 0:00:30]} cxd4 {[%emt 0:04:30]} 9. Nxd4 {[%emt 0:01:30]} Bd7 {[%emt 0:00:00]} 10. Bd3 {[%emt 0:06:30]} e5 {[%emt 0:04:00]} 11. Nb5 {[%emt 0:05:30]} Na6 {[%emt 0:00:30]} 12. O-O {[%emt 0:01:30]} Bc5 {[%emt 0:10:30]} 13. b4 {[%emt 0:04:30]} Be7 {[%emt 0:00:30]} 14. f4 {[%emt 0:01:30]} exf4 {[%emt 0:01:30]} 15. Re1 {[%emt 0:02:30]} Be6 {[%emt 0:05:30]} 16. Bxf4 {[%emt 0:04:30]} O-O {[%emt 0:02:30]} 17. Be4 {[%emt 0:04:30]} Rad8 {[%emt 0:08:30]} 18. Bxb7 {[%emt 0:01:30]} Nb8 {[%emt 0:02:30]} 19. Nd4 {[%emt 0:10:30]} Bf6 {[%emt 0:00:30]} 20. Be5 {[%emt 0:06:30]} Bg5 {[%emt 0:04:30]} 21. Nxe6 {[%emt 0:02:30]} fxe6 {[%emt 0:00:30]} 22. Bd4 {[%emt 0:06:30]} Rd7 {[%emt 0:03:30]} 23. Bf3 {[%emt 0:01:30]} Re8 {[%emt 0:02:30]} 24. b5 {[%emt 0:03:30]} Bf6 {[%emt 0:01:30]} 25. Rad1 {[%emt 0:02:30]} e5 {[%emt 0:02:30]} 26. Bc5 {[%emt 0:04:30]} e4 {[%emt 0:04:30]} 27. Rxd7 {[%emt 0:07:34]} Nxd7 {[%emt 0:00:30]} 28. Bb4 {[%emt 0:04:18]} Ne5 {[%emt 0:04:30]} 29. Bxe4 {[%emt 0:00:32]} Kh8 {[%emt 0:01:30]} 30. Rd1 {[%emt 0:04:55]} g6 {[%emt 0:02:30]} 31. a4 {[%emt 0:04:20]} Kg7 {[%emt 0:03:30]} 32. a5 {[%emt 0:00:44]} Nc4 {[%emt 0:00:30]} 33. Bc6 {[%emt 0:00:58]} Re2 {[%emt 0:03:30]} 34. Bf3 {[%emt 0:00:40]} Rc2 {[%emt 0:00:30]} 35. Rd7+ {[%emt 0:01:06]} Kh6 {[%emt 0:04:25]} 36. Bf8+ {[%emt 0:01:24]} Kg5 {[%emt 0:00:22]} 37. Rd5+ {[%emt 0:00:35]} Kf4 {[%emt 0:00:32]} 38. Bh6+ {[%emt 0:00:26]} g5 {[%emt 0:00:57]} 39. h3 {[%emt 0:00:30]} 1-0